bitfinex/quotes_ETHUSD_20260130
["timestamp","ask_amount","ask_price","bid_price","bid_amount"]
[1769746950360,0.01824651,2772.9,2771.9,0.90190843]
[1769746950540,0.01824651,2773.1,2771.9,0.90190843]
[1769746950736,0.01824651,2772.5,2771.5,3.6080465]
[1769746950935,0.01824651,2772.5,2770.7,0.1024]
[1769746950936,0.01824651,2772.7,2771.8,0.90193071]
[1769746951161,0.01824651,2773.0,2771.8,0.90193071]
[1769746951363,13.79914918,2774.2,2771.8,15.9474142]
[1769746951640,0.01824651,2773.9,2771.9,14.23373764]
[1769746952168,0.01824651,2773.6,2771.9,14.5]
[1769746952356,0.01824651,2774.1,2772.0,0.9018759]
[1769746952535,0.9194418,2774.1,2772.0,0.9018759]
[1769746952735,0.01824651,2774.1,2772.1,0.45093795]
[1769746952951,0.01824651,2773.9,2772.1,14.95093795]
[1769746953168,0.91944529,2774.1,2772.1,0.45093795]
[1769746953668,0.01824651,2774.1,2772.1,0.45093795]
[1769746953899,0.90119327,2774.1,2772.1,0.45093795]
[1769746954186,13.79914918,2773.1,2771.1,3.60864744]
[1769746954353,0.01824651,2772.8,2770.7,14.37903669]
[1769746954801,0.01824651,2772.6,2770.7,0.90229905]
[1769746954969,0.01824651,2772.6,2770.8,0.45116108]
[1769746955176,0.01824651,2772.4,2770.8,0.45116108]
[1769746955499,0.01824651,2772.6,2770.8,0.45116108]
[1769746955994,0.01824651,2772.4,2770.8,0.45116108]
[1769746956495,0.01824651,2772.6,2770.9,0.90223393]
[1769746956803,0.01824651,2772.7,2771.0,0.49623307]
[1769746957006,0.01824651,2772.5,2771.0,0.49623307]
[1769746957209,0.01824651,2772.3,2770.9,0.90223393]
[1769746957693,0.01824651,2772.5,2770.9,0.90223393]
[1769746958591,13.42405228,2772.7,2770.2,13.39459084]
[1769746958795,13.42405228,2772.7,2770.3,1.70044797]
[1769746958796,0.01824651,2772.5,2770.3,1.70044797]
[1769746959457,0.01824651,2772.3,2770.3,1.70044797]
[1769746959658,0.01824651,2772.1,2770.3,1.70044797]
[1769746959889,0.01824651,2772.1,2770.1,3.60988888]
[1769746960600,0.01824651,2771.9,2769.9,3.60997797]
[1769746960892,13.40580577,2772.1,2769.9,3.62822448]
[1769746961085,0.90181083,2772.2,2770.0,14.51824651]
[1769746961298,0.90181083,2772.2,2770.1,3.15228153]
[1769746961508,0.90168073,2772.6,2770.2,13.41283735]
[1769746961673,13.40680577,2773.9,2771.8,0.01824651]
[1769746961870,14.30709641,2773.8,2771.5,13.39459084]
[1769746962169,14.30709641,2773.8,2771.6,1.34128374]
[1769746962377,13.40580577,2773.8,2771.6,1.35953025]
[1769746962691,0.90226328,2773.9,2772.2,0.01824651]
[1769746962999,0.90226328,2773.9,2772.1,0.90184336]
[1769746963000,0.9022694,2773.9,2772.1,0.90184336]
[1769746963184,14.30807517,2773.9,2772.2,0.45092168]
[1769746963383,14.30807517,2773.9,2772.1,0.90184336]
[1769746963384,0.01824651,2773.7,2772.1,0.90184336]
[1769746963770,13.42405228,2773.7,2772.1,0.90184336]
[1769746964603,14.30725891,2773.3,2771.7,0.90197351]
[1769746965023,0.001,2773.9,2771.8,0.01824651]
[1769746965206,0.90225902,2773.9,2771.8,0.58511513]
[1769746965510,0.01824651,2774.3,2771.8,0.58511513]
[1769746965511,0.90077106,2775.4,2773.1,13.39459084]
[1769746965675,0.90077106,2775.4,2772.9,7.84343269]
[1769746965676,3.60503262,2775.3,2773.8,13.39459084]
[1769746965873,3.60503262,2775.6,2773.9,13.41283735]
[1769746966074,3.60503262,2775.6,2773.9,13.39459084]
[1769746966516,0.9007386,2775.5,2774.0,0.90122566]
[1769746966673,0.91898511,2775.5,2774.0,0.90122566]
[1769746966874,0.01824651,2775.0,2773.9,0.90125478]
[1769746967112,0.01824651,2775.0,2772.7,13.39459084]
[1769746967282,3.62327913,2774.9,2772.8,2.02286557]
[1769746967498,1.67498511,2775.5,2773.9,0.90125047]
[1769746967499,0.01824651,2775.0,2773.9,0.90125047]
[1769746967705,3.60503262,2774.9,2773.9,0.90125047]
[1769746967901,3.60503262,2774.9,2773.9,0.90123079]
[1769746968115,0.01824651,2775.6,2773.9,0.90123079]
[1769746968407,0.01824651,2775.4,2773.9,1.71236039]
[1769746968608,0.90077106,2775.4,2773.9,1.71236039]
[1769746968825,3.60503262,2775.3,2773.9,1.71236039]
[1769746969391,3.60503262,2775.2,2773.9,15.10695123]
[1769746969623,3.60503262,2775.1,2773.9,15.10695123]
[1769746969839,3.60503262,2775.6,2774.0,1.87119839]
[1769746970134,0.01824651,2775.3,2773.9,0.90123079]
[1769746970296,0.01824651,2775.1,2773.9,0.90124918]
[1769746970496,3.60503262,2775.2,2773.2,13.39459084]
[1769746970694,3.60281817,2775.7,2773.4,13.39459084]
[1769746970998,3.60503262,2775.7,2773.6,13.39459084]
[1769746971209,3.60503262,2775.7,2773.7,0.32326068]
[1769746971408,0.01824651,2775.6,2773.8,0.32326068]
[1769746971632,0.01824651,2775.4,2773.3,1.33945908]
[1769746971832,0.01824651,2775.4,2773.4,0.32371216]
[1769746972001,3.60503262,2775.3,2773.5,0.32371216]
[1769746972195,3.60503262,2775.5,2773.6,0.32371216]
[1769746972528,0.90080351,2775.3,2773.8,0.90129064]
[1769746972901,3.60503262,2775.2,2773.8,0.90129064]
[1769746973313,3.60503262,2775.2,2773.9,0.32522085]
[1769746973511,3.60503262,2775.2,2773.8,0.90129064]
[1769746973824,3.60503262,2775.2,2773.9,0.32522243]
[1769746974031,3.60503262,2775.2,2774.0,0.32522243]
[1769746974329,3.60503262,2775.2,2773.8,0.90129064]
[1769746974501,3.60503262,2775.2,2773.9,0.32541762]
[1769746974698,0.90086843,2775.1,2773.8,3.60515518]
[1769746974910,0.90086843,2775.1,2773.9,0.32545722]
[1769746974911,0.01824651,2775.0,2773.9,0.32545722]
[1769746975128,3.62327913,2775.0,2773.9,0.90125105]
[1769746975333,0.003,2773.7,2772.0,3.60748599]
[1769746975639,0.00095,2773.7,2772.3,12.57639862]
[1769746975839,3.60598262,2773.7,2772.4,12.88411911]
[1769746976003,3.60598262,2773.7,2772.5,0.325967]
[1769746976305,3.60598262,2773.7,2772.6,0.325967]
[1769746976510,0.01824651,2772.9,2772.0,0.90187059]
[1769746976700,0.01824651,2772.9,2771.3,3.60833459]
[1769746977034,0.01824651,2773.6,2771.5,12.55815211]
[1769746977343,0.01824651,2772.7,2771.6,0.32633574]
[1769746977581,0.01824651,2772.7,2771.4,0.45104708]
[1769746977582,0.01824651,2772.5,2771.7,0.32633574]
[1769746977704,0.01824651,2772.5,2771.4,0.45104708]
[1769746977905,0.01824651,2772.7,2771.5,0.40593817]
[1769746978926,0.01824651,2772.7,2771.6,0.90200606]
[1769746979643,0.01824651,2772.3,2771.5,0.90203354]
[1769746979796,0.01824651,2773.2,2771.5,0.90203354]
[1769746979797,0.01824651,2773.0,2771.5,0.90203354]
[1769746980001,0.01824651,2773.0,2771.6,0.4510188]
[1769746980532,0.01824651,2772.8,2771.6,0.4510188]
[1769746980734,0.01824651,2772.6,2771.5,0.90203354]
[1769746980906,0.01824651,2772.6,2771.2,3.60815442]
[1769746981626,0.91995133,2772.6,2771.2,3.60815442]
[1769746981934,0.01824651,2772.0,2771.1,0.002]
[1769746982134,0.01824651,2771.6,2771.1,0.002]
[1769746982301,0.01824651,2771.9,2771.1,0.002]
[1769746982721,0.01824651,2771.7,2771.1,0.002]
[1769746982927,0.01824651,2772.0,2771.8,0.002]
[1769746983122,0.01824651,2772.3,2771.1,0.002]
[1769746983435,0.01824651,2772.0,2771.1,0.002]
[1769746984228,0.01824651,2771.8,2771.1,0.002]
[1769746984428,0.01824651,2771.8,2770.3,12.52611211]
[1769746984632,0.01824651,2771.8,2770.4,1.25261121]
[1769746985040,0.01824651,2771.8,2770.5,0.90236419]
[1769746985506,0.92019342,2771.8,2770.5,0.90236419]
[1769746985701,0.01824651,2771.6,2770.5,0.90236419]
[1769746986998,0.01824651,2771.4,2770.5,0.90236419]
[1769746987433,0.90199487,2771.7,2770.5,1.35354629]
[1769746987857,0.01824651,2771.6,2770.5,1.35354629]
[1769746988023,0.01824651,2771.4,2770.5,1.35354629]
[1769746988224,0.90196203,2771.8,2770.5,1.35354629]
[1769746988843,0.92020854,2771.8,2770.5,1.35354629]
[1769746989950,13.57993389,2771.8,2770.5,1.35354629]
[1769746990368,13.57993389,2771.8,2770.5,0.90236274]
[1769746990885,12.67797186,2771.6,2770.2,0.90243989]
[1769746991184,0.90213625,2771.2,2769.7,3.61043997]
[1769746992944,0.01824651,2771.1,2769.7,3.61043997]
[1769746993132,0.90213625,2771.2,2769.9,0.90255965]
[1769746994149,13.5618616,2771.2,2769.9,0.90255965]
[1769746994679,0.01824651,2771.1,2769.8,1.35389811]
[1769746994974,12.67797186,2771.1,2769.8,0.45130648]
[1769746995274,0.90220137,2771.0,2769.2,0.9027878]
[1769746995483,0.01824651,2770.9,2769.2,0.9027878]
[1769746995837,0.01824651,2770.9,2769.9,0.002]
[1769746996286,12.67797186,2770.9,2769.2,0.9027878]
[1769746996458,12.67797186,2770.9,2769.6,0.002]
[1769746996459,12.65972535,2770.5,2769.6,0.002]
[1769746997288,0.90239676,2770.4,2769.6,0.002]
[1769746997442,13.56212211,2770.4,2768.5,12.55815211]
[1769746997641,13.56212211,2770.4,2768.6,13.90427219]
[1769746998456,0.90226649,2770.8,2768.8,12.55815211]
[1769746999049,0.01824651,2770.5,2768.6,1.34612008]
[1769746999371,0.90246191,2770.2,2768.4,0.90304869]
[1769746999539,0.01824651,2770.1,2768.4,0.90304869]
[1769746999735,12.67797186,2769.9,2768.4,0.90304869]
[1769747000150,0.01824651,2770.1,2768.4,0.90304869]
[1769747000356,0.90246191,2770.2,2768.4,0.90304869]
[1769747000558,0.90246191,2770.2,2768.5,0.45152435]
[1769747002279,0.90246191,2770.2,2768.6,0.90298345]
[1769747002485,12.67797186,2769.9,2768.5,1.35451742]
[1769747003380,12.67797186,2769.9,2768.0,3.61262915]
[1769747003381,0.01824651,2769.3,2768.0,3.61262915]
[1769747003680,0.01824651,2769.7,2768.5,0.90101432]
[1769747003860,12.67797186,2770.5,2768.5,0.89901432]
[1769747003861,0.01824651,2769.6,2768.5,0.89901432]
[1769747004057,0.01824651,2769.6,2768.5,0.89701432]
[1769747004259,0.01824651,2769.2,2768.3,0.90308131]
[1769747004473,0.01824651,2769.2,2768.2,0.90310161]
[1769747004474,0.01824651,2768.9,2768.2,0.90310161]
[1769747004646,0.01824651,2769.4,2768.2,0.90310161]
[1769747004851,0.01824651,2769.2,2768.2,0.90310161]
[1769747005052,0.01824651,2769.2,2768.2,1.71590292]
[1769747006080,0.01824651,2769.2,2767.9,0.90318697]
[1769747006081,0.01824651,2768.8,2767.9,0.90318697]
[1769747006281,0.01824651,2768.6,2767.5,0.90334236]
[1769747006579,0.01824651,2769.3,2767.5,12.91170245]
[1769747006751,0.01824651,2769.0,2767.6,1.65251125]
[1769747006951,0.01824651,2769.0,2767.5,0.90334236]
[1769747006952,0.01824651,2768.8,2767.5,0.90334236]
[1769747007153,0.01824651,2768.6,2767.5,0.90334236]
[1769747007387,0.01824651,2768.6,2767.4,0.90335906]
[1769747007603,0.01824651,2768.4,2767.1,3.61388063]
[1769747007761,0.01824651,2768.2,2767.3,0.90340024]
[1769747008101,0.01824651,2768.2,2767.3,0.90340097]
[1769747008398,0.92137406,2768.2,2767.2,0.8954403]
[1769747008601,0.01824651,2768.0,2767.2,0.8954403]
[1769747009191,12.74669095,2768.4,2767.2,0.8954403]
[1769747009391,0.01824651,2768.2,2767.2,0.8954403]
[1769747010574,12.60063849,2768.4,2767.2,1.74388823]
[1769747010968,0.01824651,2768.4,2767.7,0.002]
[1769747011374,0.92129753,2768.4,2767.7,0.002]
[1769747011775,0.01824651,2768.4,2767.7,0.002]
[1769747012992,0.9212957,2768.4,2767.7,0.002]
[1769747013180,0.01824651,2768.4,2767.7,0.002]
[1769747013378,0.01824651,2768.9,2767.7,0.002]
[1769747013761,0.01824651,2768.7,2767.7,0.002]
[1769747014877,0.01824651,2768.8,2767.7,0.002]
[1769747019092,0.01824651,2769.3,2767.7,12.72263027]
[1769747019290,0.01824651,2769.3,2767.8,13.9928933]
[1769747019496,0.01824651,2769.5,2767.8,13.9928933]
[1769747019675,0.01824651,2769.5,2767.9,0.90321182]
[1769747020082,0.92093777,2769.5,2767.9,0.90321182]
[1769747020292,0.01824651,2769.3,2768.0,1.85089524]
[1769747021617,0.01824651,2769.1,2768.0,1.85089524]
[1769747021908,0.01824651,2768.7,2768.1,0.90314656]
[1769747023194,0.01824651,2768.5,2767.9,0.90318987]
[1769747023395,0.01824651,2768.5,2767.8,0.90323851]
[1769747023979,0.01824651,2768.5,2767.7,0.002]
[1769747024178,0.01824651,2768.3,2767.7,0.002]
[1769747025098,0.01824651,2768.4,2767.7,0.002]
[1769747025693,0.01824651,2768.2,2767.7,0.002]
[1769747025889,0.01824651,2768.0,2767.5,0.002]
[1769747026705,0.92143712,2768.0,2767.5,0.002]
[1769747026903,0.01824651,2767.8,2766.9,0.90351687]
[1769747027199,0.01824651,2767.8,2765.7,12.17310152]
[1769747027200,0.01824651,2767.8,2766.5,3.61464543]
[1769747027375,0.01824651,2767.8,2766.7,0.90360192]
[1769747027376,0.01824651,2767.6,2766.7,0.90360192]
[1769747027777,0.01824651,2767.6,2766.5,0.36146454]
[1769747028004,0.01824651,2767.5,2766.0,13.62442984]
[1769747028206,0.01824651,2767.5,2766.1,3.61509814]
[1769747028404,0.01824651,2767.8,2766.1,16.33572841]
[1769747028572,0.92149445,2767.8,2766.1,16.33572841]
[1769747028777,0.92149445,2767.8,2766.2,14.44458307]
[1769747028980,0.01824651,2767.6,2766.2,14.44458307]
[1769747029585,11.83496576,2767.4,2766.2,1.7239528]
[1769747029796,0.01824651,2767.2,2766.1,3.61509814]
[1769747030119,0.01824651,2767.4,2765.9,3.61524669]
[1769747030484,11.81671925,2767.9,2765.9,3.61524669]
[1769747030485,11.81671925,2768.1,2766.0,12.72063027]
[1769747030704,0.01824651,2767.9,2766.0,12.72063027]
[1769747030909,0.01824651,2767.9,2766.2,12.72063027]
[1769747031516,0.01824651,2767.9,2766.2,12.71863027]
[1769747032417,0.92146235,2767.9,2766.3,0.90373422]
[1769747032790,0.01824651,2767.9,2766.3,0.90373422]
[1769747033516,0.92146312,2767.9,2766.3,0.90373422]
[1769747033820,0.92146312,2767.9,2766.4,1.72373014]
[1769747034004,0.01824651,2767.9,2766.4,1.72373014]
[1769747034422,0.92145835,2767.9,2766.5,0.90366889]
[1769747034623,12.7381776,2767.9,2766.5,0.90366889]
[1769747034922,0.01824651,2767.7,2766.5,0.90366889]
[1769747035088,0.01824651,2767.7,2766.6,0.62420746]
[1769747035089,0.01824651,2767.5,2766.6,0.62420746]
[1769747035290,0.01824651,2767.5,2766.5,0.90366889]
[1769747037325,0.01824651,2767.5,2765.6,3.61573457]
[1769747037326,0.01824651,2767.3,2765.9,15.73921145]
[1769747037510,0.01824651,2767.3,2766.0,12.12396476]
[1769747038131,3.63112271,2767.9,2766.0,12.12396476]
[1769747038132,11.45162577,2768.1,2766.0,12.12396476]
[1769747038288,11.46987228,2768.1,2766.2,12.12396476]
[1769747038489,0.01824651,2768.1,2766.2,12.12396476]
[1769747038690,11.46987228,2768.4,2766.6,12.12396476]
[1769747039311,0.01824651,2768.0,2766.7,0.90360357]
[1769747039628,0.01824651,2768.0,2766.8,1.66419826]
[1769747040202,0.757,2768.5,2766.8,13.78816302]
[1769747040425,0.77524651,2768.5,2766.8,13.78816302]
[1769747040626,11.46987228,2768.3,2766.8,13.78816302]
[1769747040792,0.01824651,2768.3,2766.8,13.78816302]
[1769747040997,0.001,2767.7,2766.9,1.46917666]
[1769747041238,10.27,2768.6,2766.9,13.59314142]
[1769747041533,0.01824651,2768.8,2767.1,12.12396476]
[1769747043526,0.01824651,2768.8,2767.3,12.12396476]
[1769747043732,0.01824651,2768.8,2767.4,1.30274051]
[1769747044304,7.32288844,2768.9,2767.4,1.30274051]
[1769747044516,0.01824651,2768.8,2767.4,1.30274051]
[1769747045125,11.46987228,2768.6,2767.4,1.30274051]
[1769747045322,0.01824651,2768.4,2767.2,0.9034403]
[1769747045648,0.01824651,2768.4,2767.1,3.6137612]
[1769747046242,0.01824651,2768.6,2767.2,12.12396476]
[1769747046443,0.001,2769.1,2767.4,12.12396476]
[1769747047540,0.001,2769.1,2767.5,0.90334236]
[1769747047843,0.001,2769.1,2767.6,12.12396476]
[1769747048549,0.001,2769.1,2767.8,12.12396476]
[1769747048701,0.001,2769.1,2767.9,1.21239648]
[1769747049100,0.01824651,2768.8,2767.9,1.21239648]
[1769747049304,0.01824651,2768.8,2767.5,0.90334236]
[1769747050653,0.01824651,2768.6,2767.5,0.90334236]
[1769747051013,0.001,2769.1,2767.5,13.02730712]
[1769747051209,0.01824651,2768.8,2767.5,0.90334236]
[1769747051546,0.01824651,2768.6,2767.4,3.61336946]
[1769747051745,0.01824651,2768.6,2767.5,0.60905171]
[1769747053043,0.01824651,2768.6,2767.6,0.002]
[1769747053204,0.001,2769.1,2767.6,12.12596476]
[1769747053406,0.001,2768.9,2767.6,12.12596476]
[1769747053612,0.001,2768.9,2767.7,13.02724184]
[1769747053857,0.001,2768.9,2767.8,3.11423502]
[1769747054148,0.001,2768.9,2767.7,0.90327708]
[1769747054149,11.46987228,2768.8,2767.7,0.90327708]
[1769747054312,11.46987228,2768.6,2767.7,0.90327708]
[1769747054508,0.001,2768.9,2767.7,0.90327708]
[1769747054715,11.46987228,2768.8,2767.7,0.90327708]
[1769747055018,0.01824651,2768.4,2767.7,0.90327708]
[1769747055519,0.01824651,2768.6,2767.6,0.002]
[1769747056745,0.9212346,2768.6,2767.6,0.002]
[1769747056909,12.37286037,2768.6,2767.6,0.002]
[1769747057316,11.46987228,2768.0,2766.9,0.90353825]
[1769747057849,11.46987228,2768.0,2766.2,3.61499555]
[1769747058057,12.37305969,2768.0,2766.3,1.66427272]
[1769747058256,12.37292889,2768.4,2766.3,13.78823748]
[1769747058413,13.12993096,2768.4,2766.3,13.78823748]
[1769747058609,11.45162577,2768.0,2766.3,13.78823748]
[1769747059262,11.46987228,2767.9,2766.3,1.66427272]
[1769747059423,11.46987228,2767.9,2766.2,3.61499555]
[1769747060129,12.37309314,2767.9,2766.2,3.61499555]
[1769747060852,11.46987228,2767.7,2766.2,3.61499555]
[1769747061960,0.01824651,2767.9,2766.3,12.12396476]
[1769747062135,0.01824651,2767.9,2766.5,0.90366889]
[1769747063130,12.37299174,2768.2,2766.5,0.90366889]
[1769747063330,0.01824651,2767.8,2766.5,0.90366889]
[1769747064357,0.92149681,2767.8,2766.5,0.90366889]
[1769747064648,12.37312258,2767.8,2766.5,0.90366889]
[1769747064851,11.46987228,2767.6,2766.5,0.90366889]
[1769747066425,12.37318502,2767.6,2766.5,1.71697089]
[1769747066644,0.01824651,2767.4,2766.5,0.90366889]
[1769747066842,10.4004676,2767.4,2766.5,0.90366889]
[1769747068503,11.303845,2767.4,2766.1,3.61515653]
[1769747068674,11.30384626,2767.4,2766.1,3.61515653]
[1769747068858,0.01824651,2767.2,2766.1,3.61515653]
[1769747069062,0.01824651,2767.2,2766.1,4.4285781]
[1769747069547,0.01824651,2767.2,2766.0,0.903827]
[1769747069548,10.4004676,2766.9,2766.0,0.903827]
[1769747069747,10.4004676,2766.9,2765.8,0.90386888]
[1769747069952,10.4004676,2766.7,2765.7,0.90391402]
[1769747070156,10.4004676,2766.7,2765.8,0.90389701]
[1769747070372,0.01824651,2766.7,2765.3,11.88078696]
[1769747070571,0.01824651,2766.7,2765.4,1.54970311]
[1769747071144,0.01824651,2766.7,2765.3,11.88078696]
[1769747071145,10.38222109,2766.6,2765.3,0.90406104]
[1769747071647,10.4004676,2766.5,2765.3,0.90406104]
[1769747072053,10.4004676,2766.5,2765.3,0.90606104]
[1769747072654,0.90370156,2766.4,2765.3,0.002]
[1769747073052,11.28592265,2766.4,2765.3,0.002]
[1769747073483,10.4004676,2766.3,2765.3,0.002]
[1769747074476,10.4004676,2765.9,2764.8,0.90422453]
[1769747074676,10.4004676,2765.7,2764.4,3.61736207]
[1769747074980,0.01824651,2765.9,2764.5,0.45217174]
[1769747075308,0.92211222,2765.9,2764.5,0.45217174]
[1769747075668,0.01824651,2765.9,2764.5,0.45217174]
[1769747075865,0.01824651,2765.7,2764.5,0.45217174]
[1769747076063,0.01824651,2766.3,2764.5,11.15860596]
[1769747076064,10.59239733,2766.3,2764.5,11.15860596]
[1769747076279,11.49614021,2766.3,2764.7,10.70643422]
[1769747076657,0.92207446,2766.1,2764.8,0.90422453]
[1769747076992,11.51447179,2766.1,2764.8,0.90422453]
[1769747077285,10.61064384,2765.9,2764.8,0.90422453]
[1769747077587,0.01824651,2766.3,2764.8,11.61065875]
[1769747077787,0.01824651,2766.3,2764.9,1.52275569]
[1769747078093,0.92198387,2766.3,2764.9,1.52275569]
[1769747078692,0.92198387,2766.3,2765.0,0.90415913]
[1769747079098,0.90362548,2766.7,2765.0,11.61059335]
[1769747079390,0.01824651,2766.7,2765.2,10.70643422]
[1769747081705,0.90363623,2766.6,2765.3,0.90406104]
[1769747082206,0.92186191,2766.7,2765.3,0.90406104]
[1769747084305,0.001,2766.5,2765.3,0.90406104]
[1769747084807,0.01824651,2766.4,2765.3,0.90406104]
[1769747084987,0.01824651,2766.4,2765.3,2.95606512]
[1769747085515,0.01824651,2766.4,2765.3,0.90406104]
[1769747085986,0.01824651,2766.2,2765.1,3.61830277]
[1769747086513,0.01824651,2766.2,2765.1,0.002]
[1769747086686,10.61064384,2766.0,2765.1,0.002]
[1769747086887,0.01824651,2765.8,2765.1,0.002]
[1769747088593,0.92214414,2765.8,2765.1,0.002]
[1769747088793,11.51454147,2765.8,2765.1,0.002]
[1769747089381,12.27154147,2765.8,2765.1,0.002]
[1769747090403,10.61064384,2765.6,2765.1,0.002]
[1769747090615,10.61064384,2765.6,2764.9,0.002]
[1769747092685,0.758,2765.6,2764.9,0.002]
[1769747094130,0.01824651,2765.8,2764.9,0.002]
[1769747094420,0.01824651,2765.8,2764.9,1.07284342]
[1769747094589,0.01824651,2765.8,2764.9,0.002]
[1769747095289,0.92214498,2765.8,2764.9,0.002]
[1769747096120,0.01824651,2765.8,2764.9,0.002]
[1769747097089,0.92214577,2765.8,2764.9,0.002]
[1769747097721,11.08516845,2765.8,2764.9,0.002]
[1769747098014,0.01824651,2765.6,2764.9,0.002]
[1769747098204,10.18126919,2765.6,2764.9,0.002]
[1769747098807,0.01824651,2765.4,2764.9,0.002]
[1769747099222,10.18126919,2765.2,2764.1,0.904438]
[1769747099525,10.18126919,2765.2,2765.1,0.001]
[1769747099690,10.18126919,2765.2,2764.1,0.90244387]
[1769747100202,10.18126919,2765.2,2764.9,0.002]
[1769747100414,10.18126919,2765.2,2764.0,0.90246717]
[1769747100622,10.18126919,2765.0,2764.0,0.90246717]
[1769747100795,11.08531543,2765.4,2764.1,0.90444957]
[1769747100989,0.758,2765.3,2764.1,11.28503693]
[1769747102329,10.16302268,2765.1,2763.7,0.002]
[1769747102641,10.18126919,2764.8,2763.7,0.90655536]
[1769747102934,10.18126919,2764.6,2763.7,0.9065623]
[1769747103090,10.18126919,2764.6,2763.8,0.90454631]
[1769747103291,11.08556954,2764.6,2763.7,0.002]
[1769747104290,10.16302268,2764.3,2763.7,0.002]
[1769747104802,0.01824651,2764.4,2763.7,0.002]
[1769747105612,11.08562967,2764.4,2763.7,0.002]
[1769747105845,11.08562967,2764.4,2763.1,0.90474811]
[1769747105997,11.08562967,2764.4,2763.1,1.71902796]
[1769747106198,10.16302268,2764.2,2763.1,1.71902796]
[1769747106611,0.758,2764.3,2763.1,11.28559533]
[1769747108343,10.92102268,2764.3,2763.1,1.71902796]
[1769747108544,0.758,2764.3,2763.1,10.47131548]
[1769747108842,0.01824651,2764.6,2763.1,10.47131548]
[1769747108843,0.77624651,2764.6,2763.1,10.47131548]
[1769747109522,11.84356661,2764.6,2763.1,10.47131548]
[1769747109724,11.84356661,2764.6,2763.2,1.4090365]
[1769747110229,11.84356661,2764.6,2763.3,0.90471537]
[1769747110422,0.01824651,2764.3,2763.3,0.90471537]
[1769747110622,0.01824651,2764.3,2763.3,10.47128274]
[1769747111137,0.01824651,2765.0,2763.3,10.47128274]
[1769747111138,10.16302268,2767.2,2764.8,9.56656737]
[1769747111332,11.05847494,2767.2,2765.5,9.75536304]
[1769747111536,0.01824651,2766.3,2765.7,9.56656737]
[1769747111702,0.01824651,2766.2,2765.7,9.56656737]
[1769747112008,0.01824651,2766.1,2765.7,0.90393028]
[1769747112400,0.01824651,2765.9,2765.7,0.90393028]
[1769747112627,0.01824651,2765.9,2765.5,1.09277544]
[1769747112865,0.01824651,2765.7,2765.5,1.09277544]
[1769747113036,0.01824651,2765.7,2765.5,0.18879567]
[1769747113208,0.01824651,2765.3,2764.9,0.90419183]
[1769747113528,0.01824651,2765.7,2764.9,1.71797236]
[1769747113900,0.01824651,2765.9,2764.9,1.71797236]
[1769747113901,0.01824651,2765.9,2764.9,11.28453973]
[1769747114108,0.01824651,2766.1,2764.9,11.28453973]
[1769747115330,0.01824651,2766.1,2764.9,1.71797236]
[1769747115540,0.01824651,2765.7,2764.9,1.71797236]
[1769747116099,0.01824651,2765.7,2764.9,0.90419183]
[1769747116299,0.01824651,2765.7,2764.8,0.90420501]
[1769747118732,0.01824651,2765.3,2764.2,0.9044208]
[1769747120518,0.01824651,2765.3,2763.9,3.61768323]
[1769747120734,0.01824651,2765.3,2764.0,0.45222349]
[1769747121133,0.01824651,2765.7,2764.1,9.56656737]
[1769747122317,0.01824651,2765.5,2764.1,9.56656737]
[1769747122521,0.01824651,2765.5,2764.2,0.9044208]
[1769747122876,10.18126919,2765.5,2764.2,0.9044208]
[1769747123022,0.01824651,2765.3,2764.3,1.40886714]
[1769747123228,0.01824651,2765.1,2764.3,1.40886714]
[1769747123434,0.01824651,2764.9,2764.2,0.9044208]
[1769747124553,0.01824651,2764.9,2764.1,3.61768323]
[1769747124853,0.01824651,2765.1,2764.1,3.61768323]
[1769747126016,8.77879368,2765.1,2764.1,0.90445352]
[1769747126246,0.01824651,2764.9,2764.1,0.90445352]
[1769747126416,8.77879368,2764.9,2764.1,0.90445352]
[1769747126635,8.77879368,2764.9,2763.5,9.83484616]
[1769747126636,0.01824651,2764.7,2763.5,9.83484616]
[1769747126823,0.01824651,2764.7,2763.6,10.48569979]
[1769747127136,0.01824651,2764.9,2763.6,10.48569979]
[1769747127338,0.01824651,2765.1,2763.6,10.48569979]
[1769747128022,0.01924651,2765.3,2764.0,8.93019626]
[1769747128023,0.001,2765.3,2764.0,8.93019626]
[1769747128224,0.001,2765.3,2764.2,8.93019626]
[1769747128726,0.001,2765.3,2764.3,0.90438809]
[1769747130725,8.77879368,2765.0,2764.2,0.9044208]
[1769747130945,0.01824651,2765.0,2764.2,0.9044208]
[1769747131258,0.001,2765.3,2764.2,10.3328475]
[1769747134851,0.001,2765.3,2764.2,1.40265124]
[1769747135546,0.01924651,2765.3,2764.2,1.40265124]
[1769747135870,0.01824651,2765.0,2763.8,3.61811119]
[1769747136924,8.96150624,2765.2,2763.8,3.61811119]
[1769747137328,0.01824651,2765.1,2763.8,3.61811119]
[1769747137658,0.01824651,2765.1,2764.4,0.002]
[1769747138471,8.97975275,2765.1,2764.4,0.002]
[1769747138865,9.88389005,2765.1,2764.4,0.002]
[1769747139069,0.01824651,2764.9,2764.4,0.002]
[1769747139576,0.01824651,2764.7,2764.1,0.002]
[1769747139965,8.96150624,2764.4,2763.6,1.55550353]
[1769747140278,8.96150624,2764.4,2763.6,0.90460874]
[1769747140279,0.01824651,2764.3,2763.6,0.90460874]
[1769747141242,8.97975275,2764.3,2763.6,0.90460874]
[1769747142279,8.97975275,2764.3,2763.5,3.61857458]
[1769747142467,8.97975275,2764.3,2763.5,0.9046499]
[1769747142780,9.88414373,2764.3,2763.5,0.9046499]
[1769747142946,9.88414373,2764.3,2763.4,0.69251997]
[1769747143141,8.97975275,2764.1,2763.4,0.90468016]
[1769747144148,8.96150624,2764.5,2763.4,0.90468016]
[1769747144351,0.01824651,2764.4,2763.4,0.81442715]
[1769747144563,0.01824651,2764.4,2763.3,0.002]
[1769747144859,8.97975275,2764.4,2763.3,0.002]
[1769747145577,8.97975275,2764.2,2763.3,0.002]
[1769747147252,9.88417758,2764.2,2763.3,0.002]
[1769747147650,0.01824651,2764.0,2763.3,0.002]
[1769747147879,8.97975275,2764.0,2763.3,0.002]
[1769747148083,0.01824651,2763.8,2763.3,0.002]
[1769747148578,8.97975275,2763.8,2763.3,0.002]
[1769747148782,0.01824651,2763.6,2762.7,0.90489453]
[1769747149087,9.88439217,2763.6,2762.2,0.90507566]
[1769747149247,8.97975275,2763.4,2762.3,1.31129566]
[1769747149689,8.97975275,2763.2,2762.2,0.90507566]
[1769747151291,8.97975275,2763.2,2762.0,0.002]
[1769747151473,9.88451229,2763.2,2762.5,0.002]
[1769747151786,9.88450275,2763.2,2762.5,0.002]
[1769747151991,8.97975275,2763.2,2762.5,0.002]
[1769747152298,8.96150624,2763.9,2762.5,0.002]
[1769747152468,0.758,2764.0,2762.5,9.44863956]
[1769747152797,8.96150624,2763.8,2762.5,0.86114905]
[1769747152954,0.01824651,2763.9,2762.5,8.58949051]